[Event "Charlotte Summer IM C 2022"]
[Site "Charlotte"]
[Date "2022.07.27"]
[Round "5.1"]
[White "Luo, Terry"]
[Black "Huston, Gus"]
[Result "1-0"]
[ECO "E08"]
[WhiteElo "2204"]
[BlackElo "2282"]
[Annotator "TA"]
[PlyCount "139"]
[EventDate "2022.07.24"]
[EventType "tourn"]
[EventCountry "USA"]
[SourceTitle "playchess.com"]
[Source "ChessBase"]
[SourceQuality "1"]
[TimeControl "5400+30"]

{[%evp 18,139,29,22,10,10,43,50,41,23,23,21,18,24,31,24,53,50,58,39,56,62,115,114,106,110,129,133,135,116,114,107,102,100,113,112,367,124,372,373,372,371,364,325,327,304,352,341,359,349,493,484,481,431,524,543,675,643,613,502,550,490,598,603,590,585,555,307,292,297,302,276,283,257,240,220,191,46,45,52,95,95,102,150,334,157,157,157,157,157,291,20,20,8,8,8,8,0,16,0,0,0,0,0,0,0,14,0,20,20,375,375,29976,29977,29977,29978,29979,29979,29979,29980,29981,29982,29982,29983]} 1. d4 {[%emt 0:00:01]} Nf6 {[%emt 0:00:26]} 2. c4 {[%emt 0:00:32]} e6 {[%emt 0:00:04]} 3. g3 {[%emt 0:00:01]} d5 {[%emt 0:00:13]} 4. Bg2 {[%emt 0:00:02]} Be7 {[%emt 0:00:08]} 5. Nf3 {[%emt 0:00:03]} O-O {[%emt 0:00:10]} 6. O-O {[%emt 0:00:02]} Nbd7 {[%emt 0:00:05]} 7. Qc2 {[%emt 0:00:17]} c6 {[%emt 0:00:15]} 8. Rd1 {[%emt 0:00:06]} b6 {[%emt 0:00:07][%cal Bb7b6,Bb6b5,Bb5b4][%mdl 32]} 9. b3 {[%emt 0:00:02]} Bb7 {[%emt 0:00:09] 9...Bb7 is better than 9...Ba6.} 10. Nc3 {[%emt 0:00:04]} Ba6 {[%emt 0:00:06] E08: Closed Catalan: Main Line: 7 Qc2.} 11. Bb2 {[%emt 0:02:37]} b5 {[%emt 0:03:10]} 12. c5 {[%emt 0:03:21]} b4 {[%emt 0:01:08] White is slightly better.} 13. Na4 {[%emt 0:00:01]} Bb5 {[%emt 0:14:25] [#]} 14. Ne1 $146 {[%emt 0:00:13]} ({Predecessor:} 14. a3 a5 15. axb4 axb4 16. Ne1 Qc7 17. Nd3 Qb7 18. Bc1 Ra7 19. Bd2 Rfa8 20. Rdb1 {½-½ (29) Baburin,A (2416)-Fitzsimons,D (2324) Dublin 2021}) 14... Qc7 {[%emt 0:08:27]} 15. Nd3 {[%emt 0:03:42]} a5 {[%emt 0:04:39]} 16. a3 {[%emt 0:04:22]} bxa3 {[%emt 0:01:02]} 17. Rxa3 {[%emt 0:03:15]} Rfe8 {[%emt 0:03:01]} 18. Nc3 {[%emt 0:14:03]} Ba6 {[%emt 0:02:20]} 19. Rda1 {[%emt 0:02:11]} Bb7 {[%emt 0:14:24]} (19... Bxd3 $14 20. Qxd3 (20. exd3 Qb7 $14) 20... e5) 20. e4 {[%emt 0:07:44]} dxe4 {[%emt 0:01:24]} 21. Nxe4 {[%emt 0:00:47]} Nxe4 {[%emt 0:04:28]} 22. Bxe4 {[%emt 0:00:05]} Nf6 {[%emt 0:00:05]} 23. Bf3 {[%emt 0:00:19]} Ba6 {[%emt 0:04:13]} 24. Ne5 {[%emt 0:02:57]} Bb5 {[%emt 0:03:21]} 25. Bc3 {[%emt 0:00:10]} Nd7 {[%emt 0:07:26]} 26. Bxa5 {[%emt 0:28:11] 0x0.0013bbc83422dp-1022s more active pieces.} (26. Rxa5 {keeps more tension.} Rxa5 27. Bxa5 Qb7 28. Nc4) 26... Nxe5 $4 {[%emt 0:07:02][%mdl 8192]} 27. dxe5 $2 {[%emt 0:10:31]} (27. Bxc7 $18 Nxf3+ 28. Kh1 Rxa3 29. Rxa3) 27... Rxa5 $2 {[%emt 0:01:59]} 28. Rxa5 $18 {[%emt 0:00:07] [#] Ra8 is the strong threat.} Qxe5 {[%emt 0:00:04]} 29. Ra8 {[%emt 0:01:27]} Rf8 {[%emt 0:00:13]} 30. Rxf8+ {[%emt 0:04:23]} Bxf8 {[%emt 0:00:03]} 31. Rc1 {[%emt 0:00:08]} g5 {[%emt 0:03:55]} 32. Qc3 {[%emt 0:00:25]} Qf5 {[%emt 0:00:17]} 33. Qe3 {[%emt 0:00:59]} g4 {[%emt 0:03:32]} (33... h6 $142 34. Be2 Bxe2) 34. Be2 {[%emt 0:00:48]} Bxe2 {[%emt 0:01:17]} 35. Qxe2 {[%emt 0:14:04][%mdl 4096] Endgame KQR-KQB} h5 {[%emt 0:00:52]} 36. b4 {[%emt 0:00:00]} Qg5 {[%emt 0:05:20]} 37. Qe3 {[%emt 0:00:00]} Qd5 {[%emt 0:00:13]} 38. Re1 {[%emt 0:00:00]} Bg7 {[%emt 0:02:39]} 39. Qe4 {[%emt 0:00:00]} Qb3 {[%emt 0:01:08]} 40. Re3 {[%emt 0:00:00]} Qb2 {[%emt 0:01:12]} 41. Rd3 {[%emt 0:00:00] Inhibits Bd4.} Bc3 {[%emt 0:00:39]} 42. Kg2 {[%emt 0:00:00]} Qxb4 {[%emt 0:02:29]} 43. Qxc6 {[%emt 0:00:00]} Kg7 {[%emt 0:00:28]} 44. Rd7 {[%emt 0:00:14] [#] Intending Qxe6 and mate.} h4 {[%emt 0:01:48] ( -> ...h3+)} 45. gxh4 {[%emt 0:02:42] And now Qxe6 would win.} (45. Qxe6 $2 h3+ 46. Kf1 Qb1+ 47. Ke2 Qe1+ 48. Kd3 Qxe6 $19) 45... Qc4 {[%emt 0:00:46]} 46. Qb7 {[%emt 0:00:31]} Qf4 {[%emt 0:00:02]} 47. Rd3 {[%emt 0:00:58]} (47. Qb1 $18) 47... Bd4 $14 {[%emt 0:01:12]} 48. f3 {[%emt 0:01:29]} Be5 {[%emt 0:00:31]} 49. fxg4 {[%emt 0:00:15]} Qxh2+ {[%emt 0:00:02]} 50. Kf1 {[%emt 0:00:01] Hoping for Qe4.} Qc2 $2 {[%emt 0:00:52]} (50... Qf4+ $16 51. Qf3 (51. Rf3 Qc4+ 52. Kf2 Qc2+ 53. Ke3 Qc3+ 54. Kf2 Qd2+ 55. Kg1 Qd1+ 56. Kg2 Qe2+ 57. Rf2 Qxg4+ 58. Kh1 Qd1+ 59. Kg2 Qg4+ 60. Kh1 Qd1+ 61. Kg2 Qg4+ $11) 51... Qc1+ 52. Kf2 Bf4) 51. Qf3 {[%emt 0:00:23]} ({Stronger than} 51. Rf3 Qd1+ 52. Kg2 Qe2+ 53. Rf2 (53. Kg1 Qd1+ 54. Kg2 Qe2+ 55. Rf2 Qxg4+ 56. Kh1 Qd1+ 57. Kg2 Qg4+ 58. Kh1 Qd1+ 59. Kg2 Qg4+ $11) 53... Qxg4+ 54. Kh1 Qd1+ 55. Kg2 Qg4+ 56. Kh1 Qd1+ 57. Kg2 Qg4+ $11) (51. Qe4 $18 {is the precise move to win.} Qb1+ 52. Kf2 Qc2+ 53. Kf3) 51... Qxc5 $16 {[%emt 0:00:01]} 52. Qe2 {[%emt 0:00:54]} Qc1+ {[%emt 0:00:17]} 53. Kg2 {[%emt 0:00:05]} Qf4 {[%emt 0:00:08]} (53... Qc6+ $16 54. Rf3 Bf4) 54. Rh3 $2 {[%emt 0:00:30]} (54. Kh3 $18) 54... f6 $11 {[%emt 0:00:46]} 55. Qf3 {[%emt 0:00:21] Strongly threatening Qxf4.} Qd2+ {[%emt 0:00:05]} 56. Qf2 {[%emt 0:00:02]} Qb4 {[%emt 0:00:22]} 57. Qe2 {[%emt 0:00:12]} Qf4 {[%emt 0:00:01]} 58. Qf3 {[%emt 0:01:14]} Qd2+ {[%emt 0:00:10]} 59. Kh1 {[%emt 0:00:23]} Qc1+ {[%emt 0:00:26]} 60. Kg2 {[%emt 0:00:05]} Qd2+ {[%emt 0:00:08]} 61. Qf2 {[%emt 0:00:11]} Qb4 $1 {[%emt 0:00:12]} 62. Qe2 {[%emt 0:00:55] aiming for Re3.} Qf4 $1 {[%emt 0:00:13]} 63. h5 {[%emt 0:00:30][%cal Bh4h5,Bh5h6,Bh6h7][%mdl 32]} Kh6 $2 {[%emt 0:02:03][%mdl 8192]} (63... Kh8 $11 {and Black has nothing to worry.}) 64. Qe3 $18 {[%emt 0:00:05] Black must now prevent Rf3.} f5 $2 {[%emt 0:00:45]} (64... Kg7 $18 65. Qxf4 Bxf4) 65. Rf3 {[%emt 0:00:49] White mates.} ({Weaker is} 65. gxf5 exf5 66. Qxf4+ Bxf4 $18) 65... Qxe3 {[%emt 0:00:38]} 66. Rxe3 {[%emt 0:00:01]} Bf6 {[%emt 0:00:12]} 67. Rxe6 {[%emt 0:00:13]} Kg5 {[%emt 0:00:02]} 68. h6 {[%emt 0:00:14]} fxg4 {[%emt 0:01:20]} 69. h7 {[%emt 0:00:06]} Bg7 {[%emt 0:00:14]} 70. Re8 {[%emt 0:00:07] Weighted Error Value: White=0.38/Black=0.31} 1-0

[Event "Charlotte Summer IM C 2022"]
[Site "Charlotte"]
[Date "2022.07.27"]
[Round "5.2"]
[White "Xie, Bryan"]
[Black "Rodrigue-Lemieux, Shawn"]
[Result "0-1"]
[ECO "B15"]
[WhiteElo "2191"]
[BlackElo "2366"]
[Annotator "TA"]
[PlyCount "42"]
[EventDate "2022.07.24"]
[EventType "tourn"]
[EventCountry "USA"]
[SourceTitle "playchess.com"]
[Source "ChessBase"]
[SourceQuality "1"]
[TimeControl "5400+30"]

{[%evp 11,42,28,33,15,9,0,0,1,6,0,0,-71,-72,-83,-89,-88,-92,-122,-115,-125,-91,-283,-271,-248,-258,-410,-413,-388,-310,-550,-544,-535,-529]} 1. e4 {[%emt 0:00:48]} c6 {[%emt 0:00:03]} 2. d4 {[%emt 0:00:10]} d5 {[%emt 0:00:05]} 3. Nc3 {[%emt 0:00:02]} dxe4 {[%emt 0:00:12]} 4. Nxe4 {[%emt 0:00:13]} Nf6 {[%emt 0:00:02]} 5. Nxf6+ {[%emt 0:00:13]} exf6 {[%emt 0:00:02]} 6. c3 {[%emt 0:00:10]} Bf5 {[%emt 0:00:02]} 7. Bf4 {[%emt 0:01:48] B15: Caro-Kann: 3 Nc3: 3...g6 and 3...dxe4 4 Nxe4 Nf6 5 Nxf6+ exf6.} Bd6 {[%emt 0:00:07]} 8. Bxd6 {[%emt 0:00:38]} Qxd6 {[%emt 0:00:02]} 9. Bd3 {[%emt 0:00:59] The position is equal.} Bxd3 {[%emt 0:00:08]} 10. Qxd3 {[%emt 0:00:04]} O-O {[%emt 0:00:02]} 11. O-O-O {[%emt 0:01:04] [#]} (11. Ne2 $11) 11... Qd5 $146 {[%emt 0:00:30][%csl LRa2,LRg2]} ({Predecessor:} 11... Nd7 12. Nf3 Rfe8 13. Kb1 Re6 14. Rhe1 Rae8 15. h3 Rxe1 16. Rxe1 Rxe1+ 17. Nxe1 Qe6 {½-½ (29) Wigger,J-Hainke,G Germany 1995}) 12. Nf3 {[%emt 0:04:26]} Qxa2 {[%emt 0:00:11]} 13. Rhe1 {[%emt 0:00:11]} Nd7 {[%emt 0:03:49]} 14. Re7 {[%emt 0:30:04]} Qd5 {[%emt 0:00:46]} 15. c4 {[%emt 0:18:06]} Qd6 {[%emt 0:00:08]} 16. Rde1 {[%emt 0:00:10] [#]} (16. Qa3 $17 {was worth a try.} Qxa3 17. bxa3) 16... Ne5 $1 $19 {[%emt 0:00:44][%mdl 512]} 17. R1xe5 {[%emt 0:03:40]} fxe5 {[%emt 0:00:09]} 18. Rxb7 {[%emt 0:01:18]} (18. Rxe5 $142 Rae8 19. Re3) 18... exd4 {[%emt 0:01:42]} 19. Qxd4 {[%emt 0:00:14]} Qh6+ {[%emt 0:00:26]} 20. Kb1 $2 {[%emt 0:00:37]} (20. Qe3 Qg6 21. g3) 20... Qg6+ {[%emt 0:00:08]} 21. Ka2 {[%emt 0:00:12]} c5 {[%emt 0:00:22] White got outplayed after the opening.  Weighted Error Value: White=0.52/Black=0.10 (very precise)} 0-1

[Event "Charlotte Summer IM C 2022"]
[Site "Charlotte"]
[Date "2022.07.27"]
[Round "5.3"]
[White "Adewumi, Tanitoluwa"]
[Black "Venkat, Raghav"]
[Result "1/2-1/2"]
[ECO "B31"]
[WhiteElo "2309"]
[BlackElo "2227"]
[Annotator "TA"]
[PlyCount "124"]
[EventDate "2022.07.24"]
[EventType "tourn"]
[EventCountry "USA"]
[SourceTitle "playchess.com"]
[Source "ChessBase"]
[SourceQuality "1"]
[TimeControl "5400+30"]

{[%evp 15,124,13,22,0,0,-27,6,-51,-43,-53,-41,-42,-53,-47,-53,-60,-29,-91,-85,-69,-37,-33,6,10,64,23,29,37,22,25,23,31,42,0,-4,-37,-37,-229,-232,-261,-253,-383,-384,-368,-367,-364,-377,-273,-187,-156,-161,-352,-262,-223,-228,-382,-375,-393,-380,-386,-397,-397,-394,-391,-378,-339,-337,-311,-200,-199,-189,-196,-203,-182,-135,-341,-335,-487,-448,-701,-654,-717,-719,-690,-639,-531,-260,-227,-210,-171,-8,-8,-8,-122,-122,-122,-122,-122,-122,-122,-8,-8,-8,-29970,-29971,-29967,-8,-8,-8,-8,-8]} 1. e4 {[%emt 0:00:05]} c5 {[%emt 0:09:01]} 2. Nf3 {[%emt 0:00:08]} Nc6 {[%emt 0:01:19]} 3. Bb5 {[%emt 0:00:12]} g6 {[%emt 0:00:54]} 4. Bxc6 {[%emt 0:00:05]} dxc6 {[%emt 0:00:04]} 5. d3 {[%emt 0:00:06]} Bg7 {[%emt 0:00:05]} 6. h3 {[%emt 0:00:04]} e5 {[%emt 0:00:56]} 7. Be3 {[%emt 0:00:06]} b6 {[%emt 0:00:04]} 8. Nc3 {[%emt 0:00:04]} Ne7 {[%emt 0:01:25]} 9. Qd2 {[%emt 0:00:05] B31: Sicilian: 2...Nc6 3 Bb5 g6.} h6 {[%emt 0:01:39]} 10. O-O {[%emt 0:01:59]} Be6 {[%emt 0:02:01]} 11. a3 {[%emt 0:00:57]} (11. Qe2 $11) 11... f5 $15 {[%emt 0:16:49]} 12. exf5 $1 {[%emt 0:00:59]} gxf5 {[%emt 0:01:35] [#]} 13. Rfe1 $146 {[%emt 0:04:59][%cal Oe3f4]} ({Predecessor:} 13. Qe2 O-O 14. Nh4 Nd5 15. Bd2 Qxh4 16. f4 Rae8 17. fxe5 Bd7 18. Qf3 Rxe5 19. Nxd5 cxd5 {0-1 (54) Gu,X (2219)-Simonovic,M (2115) Chess.com INT 2022}) 13... Ng6 {[%emt 0:00:20] Inhibits Bf4.} 14. Qe2 {[%emt 0:09:43][%cal Oh3h4]} O-O {[%emt 0:04:04]} 15. Nh2 {[%emt 0:15:09]} Kh7 {[%emt 0:05:48]} 16. f4 {[%emt 0:15:36]} (16. Qh5 $11 {keeps the balance.}) 16... exf4 $17 {[%emt 0:21:07]} 17. Bxc5 {[%emt 0:01:50]} Re8 {[%emt 0:02:01]} 18. Bf2 {[%emt 0:02:34]} Bxc3 {[%emt 0:01:57]} 19. bxc3 {[%emt 0:03:58]} Bd5 {[%emt 0:00:04]} (19... Bf7 $11 20. Qh5 Qg5 21. Qxg5 hxg5) 20. Qh5 {[%emt 0:04:49]} Qg5 {[%emt 0:01:06]} 21. Qxg5 {[%emt 0:00:14]} hxg5 {[%emt 0:00:04]} 22. c4 {[%emt 0:00:16]} Be6 {[%emt 0:01:04]} 23. Nf3 {[%emt 0:01:07]} Kh6 {[%emt 0:00:06]} 24. a4 {[%emt 0:05:44]} (24. Bd4 $14) 24... c5 $11 {[%emt 0:01:08] Black wants to play ...g4.} 25. Kf1 {[%emt 0:02:08]} g4 {[%emt 0:05:54]} 26. Nd2 {[%emt 0:01:05]} ({Better is} 26. a5 $1 $15) 26... g3 $19 {[%emt 0:00:40]} 27. Bg1 {[%emt 0:00:51]} Bd7 $1 {[%emt 0:00:03]} 28. c3 {[%emt 0:13:27]} (28. Nf3 {was called for.}) 28... Rxe1+ {[%emt 0:02:59]} 29. Rxe1 {[%emt 0:00:55][%cal Oa4a5]} Bxa4 {[%emt 0:00:04]} 30. Re6 {[%emt 0:04:38]} Bc2 {[%emt 0:04:54]} 31. Ke2 {[%emt 0:08:09]} Kg7 {[%emt 0:00:19]} 32. Nf3 {[%emt 0:01:18]} Rd8 {[%emt 0:00:32]} 33. Ne1 {[%emt 0:02:33]} (33. d4) 33... Ba4 {[%emt 0:00:07][%cal Bc2a4,Ba4e8,Be8f7][%mdl 32]} 34. Nf3 {[%emt 0:00:23] [#]} Be8 $1 {[%emt 0:04:05]} 35. Kd2 $2 {[%emt 0:01:11]} (35. h4) 35... Bf7 {[%emt 0:00:19]} 36. Rc6 {[%emt 0:00:19]} Rd7 {[%emt 0:01:54]} 37. Rc8 {[%emt 0:00:43]} Bxc4 {[%emt 0:00:22]} 38. Bd4+ {[%emt 0:00:14]} cxd4 {[%emt 0:00:06]} 39. Rxc4 {[%emt 0:00:08]} dxc3+ {[%emt 0:00:20]} 40. Kxc3 {[%emt 0:00:09][%mdl 4096] Endgame KRN-KRN} Re7 {[%emt 0:01:55] White must now prevent ...Re2.} 41. Kd2 {[%emt 0:01:13] Inhibits Re2+.} Kf6 {[%emt 0:01:17] Threatens to win with ...b5.} 42. d4 {[%emt 0:00:29]} b5 {[%emt 0:01:33]} 43. Rc5 {[%emt 0:00:40]} Rb7 {[%emt 0:01:21]} 44. Rc6+ {[%emt 0:00:24]} Kg7 {[%emt 0:00:05]} (44... Kf7 $19 45. Ng5+ Kg7 46. Ne6+ Kg8 47. Rc8+ Kh7 48. Ng5+ Kh6) 45. Kc3 $2 {[%emt 0:00:42]} (45. h4 $17) 45... a5 {[%emt 0:01:57]} 46. Rc5 {[%emt 0:00:29]} (46. h4 $142 Ne7 47. Rd6) 46... b4+ {[%emt 0:00:33][%cal Bb5b4,Bb4b3,Bb3b2][%mdl 32]} 47. Kb3 {[%emt 0:00:05]} (47. Kb2 $142 Re7 48. Rc2) 47... a4+ {[%emt 0:00:18]} 48. Kxa4 {[%emt 0:00:05]} b3 {[%emt 0:00:05] Strongly threatening ...b2.} 49. Rc1 {[%emt 0:00:21]} b2 {[%emt 0:00:14]} 50. Rb1 {[%emt 0:00:03]} Ne7 {[%emt 0:00:04]} (50... Kh6 $142 {...Kh5 is the strong threat.} 51. Ka3 Kh5) 51. Ka3 {[%emt 0:00:44]} Nd5 {[%emt 0:00:06] Hoping for ...Ne3.} 52. Rxb2 {[%emt 0:00:29]} Rxb2 {[%emt 0:00:04]} (52... Rc7 $19 {aiming for ...Ne3.} 53. Ka2 Kf6) 53. Kxb2 {[%emt 0:00:03] KN-KN} Ne3 {[%emt 0:00:03]} 54. Ne1 {[%emt 0:00:44]} (54. Kc3 $11) 54... Kf6 $17 {[%emt 0:01:42]} (54... Nxg2 $2 55. Nxg2 Kf7 56. Nh4 $18) 55. Kc3 {[%emt 0:01:46] [#]} Nxg2 $1 {[%emt 0:01:15][%mdl 512]} 56. Nf3 {[%emt 0:00:15]} Ne3 {[%emt 0:00:07]} 57. Kd3 {[%emt 0:00:38]} Nf1 {[%emt 0:03:11]} (57... Nd5 $17 58. Ke2 Ne7) 58. Ke2 $11 {[%emt 0:00:35]} Nh2 {[%emt 0:00:28]} 59. Ne1 $2 {[%emt 0:00:41][%mdl 8192]} (59. h4 $11) 59... Ke6 {[%emt 0:00:08]} 60. h4 {[%emt 0:00:26]} g2 $2 {[%emt 0:03:12]} (60... Kd5 {mates} 61. h5 Ke4 62. h6 f3+ 63. Nxf3 Nxf3 64. h7 Nxd4+ 65. Kd2 g2 66. h8=Q g1=Q 67. Qa8+ Kf4 68. Qb8+ Kf3 69. Qa8+ Kf2 70. Kc3 Qc1+ 71. Kb4 f4 72. Qa7 Qe3 73. Kc4 Qe6+ 74. Kc5 {[#]} f3 $1 75. Qg7 Nb3+ 76. Kb5 Ke2 77. Qg1 Qd5+ 78. Kb4 Nd4 79. Qg6 Qb5+ 80. Kc3 Qc5+ 81. Kb2 Qb4+ 82. Ka2 Qb3+ 83. Ka1 Qa3+ 84. Kb1 Qd3+ 85. Qxd3+ Kxd3 86. Ka2 f2 87. Kb2 f1=Q 88. Ka3 Kc3 89. Ka2 Qe2+ 90. Kb1 Qb2#) 61. Kf2 {[%emt 0:00:37]} f3 {[%emt 0:00:06] ( -> ...Ng4+)} 62. Kg1 {[%emt 0:00:27] [#]} Kd5 $1 {[%emt 0:02:17] Weighted Error Value: White=0.53/Black=0.36} 1/2-1/2

[Event "Charlotte Summer IM C 2022"]
[Site "Charlotte"]
[Date "2022.07.27"]
[Round "5.4"]
[White "Girones Barrios, Yans Richard"]
[Black "Wen, Tommy"]
[Result "1/2-1/2"]
[ECO "D94"]
[WhiteElo "2412"]
[BlackElo "2040"]
[Annotator "TA"]
[PlyCount "122"]
[EventDate "2022.07.24"]
[EventType "tourn"]
[EventCountry "USA"]
[SourceTitle "playchess.com"]
[Source "ChessBase"]
[SourceQuality "1"]
[TimeControl "5400+30"]

{[%evp 14,122,24,25,25,41,52,49,69,-1,3,-29,-29,-42,-43,-34,-45,-38,-48,-44,-31,-28,-30,-27,-25,-8,-11,-6,0,4,0,0,21,6,20,9,9,12,12,11,68,68,68,69,87,70,84,84,84,84,84,62,84,62,62,62,70,70,73,69,69,69,69,78,62,62,62,62,62,56,62,56,66,37,37,37,37,37,37,37,37,36,37,37,37,37,37,0,37,37,37,0,37,29,29,29,29,29,29,29,29,0,0,0,0,0,0,0,0,0,0]} 1. d4 {[%emt 0:00:04]} d5 {[%emt 0:01:59]} 2. c4 {[%emt 0:00:13]} c6 {[%emt 0:00:09]} 3. Nc3 {[%emt 0:00:15]} Nf6 {[%emt 0:00:06]} 4. e3 {[%emt 0:00:16]} g6 {[%emt 0:00:07]} 5. Nf3 {[%emt 0:01:44]} Bg7 {[%emt 0:00:06]} 6. Bd3 {[%emt 0:02:59]} O-O {[%emt 0:00:19]} 7. h3 {[%emt 0:01:07]} c5 {[%emt 0:01:23]} 8. O-O {[%emt 0:01:20]} Nc6 {[%emt 0:05:59] D94: Grünfeld: 4 Nf3 Bg7 5 e3.} 9. dxc5 {[%emt 0:08:57]} dxc4 {[%emt 0:02:29]} 10. Bxc4 {[%emt 0:00:08]} Qa5 {[%emt 0:01:38] White is slightly better.} 11. Na4 {[%emt 0:04:37]} (11. Qe2 $14) 11... Ne4 $1 $11 {[%emt 0:06:37]} 12. Qc2 {[%emt 0:05:02]} Bf5 {[%emt 0:07:43][%mdl 1024] Black has compensation.} 13. Nh4 {[%emt 0:00:16]} Nb4 {[%emt 0:01:02]} ({Resist} 13... Nxc5 14. Nxf5 Qxa4 15. b3 $16) 14. Qb3 {[%emt 0:00:30]} Bd7 {[%emt 0:01:36]} 15. a3 {[%emt 0:00:19]} Na6 {[%emt 0:03:35]} 16. Qxb7 {[%emt 0:00:27] [#]} Qxa4 $146 {[%emt 0:05:51]} (16... Nexc5 {is interesting.} 17. Nxc5 Nxc5 18. Qf3 Qa4) ({Predecessor:} 16... Naxc5 17. Nxc5 Nxc5 18. Qb4 Qc7 19. Qe1 Rab8 20. Bd2 Bxb2 21. Ra2 Ne4 22. Bd3 Nxd2 23. Qxd2 {½-½ (58) Zhao,X (2562)-Gu,T (1984) China 2013}) 17. Qxa6 {[%emt 0:01:02]} Qxa6 {[%emt 0:02:32]} 18. Bxa6 {[%emt 0:00:10]} Nxc5 {[%emt 0:00:09]} 19. Bc4 {[%emt 0:01:53]} Rab8 {[%emt 0:01:18]} 20. Nf3 {[%emt 0:11:25]} Bxb2 {[%emt 0:07:15]} 21. Bxb2 {[%emt 0:00:08]} Rxb2 {[%emt 0:00:03]} 22. Rac1 {[%emt 0:08:49][%cal Oc4f7]} Be6 {[%emt 0:04:51]} 23. Nd4 {[%emt 0:01:26]} Rb6 {[%emt 0:02:03]} 24. Bxe6 {[%emt 0:03:16]} Nxe6 {[%emt 0:00:06]} 25. Nxe6 {[%emt 0:02:20]} Rxe6 {[%emt 0:00:20][%mdl 4096] Endgame KRR-KRR} 26. Rc7 {[%emt 0:00:01]} Ra6 {[%emt 0:00:45]} ({Better is} 26... a6 $11) 27. Rxe7 $14 {[%emt 0:00:10]} Rxa3 {[%emt 0:00:03]} 28. Rc1 {[%emt 0:00:30]} a5 {[%emt 0:00:48][%cal Ba7a5,Ba5a4][%mdl 32]} 29. Rcc7 {[%emt 0:00:27]} Ra1+ {[%emt 0:00:50]} 30. Kh2 {[%emt 0:00:06]} a4 {[%emt 0:00:03]} 31. Ra7 {[%emt 0:00:57]} a3 {[%emt 0:00:05]} 32. e4 {[%emt 0:02:14][%cal Be3e4,Be4e5][%mdl 32]} a2 {[%emt 0:00:40]} 33. e5 {[%emt 0:00:36]} Rc8 {[%emt 0:02:49]} 34. e6 {[%emt 0:06:47]} Rac1 {[%emt 0:02:46]} 35. Rxa2 {[%emt 0:01:32]} R1c7 {[%emt 0:00:42]} 36. Rxf7 {[%emt 0:01:56] White is more active.} (36. exf7+ {seems wilder.} Kf8 37. Re4 Rxf7 38. f3) 36... Rxf7 {[%emt 0:00:24]} 37. exf7+ {[%emt 0:00:07]} Kxf7 $16 {[%emt 0:00:03] KR-KR} 38. Ra7+ {[%emt 0:00:01]} Kg8 {[%emt 0:00:01]} 39. Kg3 {[%emt 0:35:53]} Rf8 40. Re7 Rf6 41. f3 Rf5 42. Kg4 {[%emt 0:00:00]} Kh8 {[%emt 0:07:47]} 43. f4 {[%emt 0:00:00]} Kg8 {[%emt 0:00:35]} 44. g3 {[%emt 0:00:00]} Rb5 {[%emt 0:02:27]} 45. Re5 {[%emt 0:00:00]} Rb3 {[%emt 0:02:53]} 46. Kh4 {[%emt 0:00:00]} Kf7 {[%emt 0:30:33]} 47. Ra5 {[%emt 0:04:00]} Rf3 {[%emt 0:00:30]} 48. Ra7+ {[%emt 0:00:00]} Kg8 $1 {[%emt 0:00:00]} 49. Ra4 {[%emt 0:00:00]} Kg7 {[%emt 0:00:00]} 50. Ra7+ {[%emt 0:00:00]} Kg8 {[%emt 0:00:00]} 51. Kg4 {[%emt 0:00:00]} Rb3 {[%emt 0:00:00]} 52. Re7 {[%emt 0:00:00]} Ra3 {[%emt 0:00:00]} 53. h4 {[%emt 0:00:00]} h5+ {[%emt 0:00:00]} 54. Kh3 {[%emt 0:00:00]} Kf8 {[%emt 0:00:00]} 55. Re5 {[%emt 0:00:00]} Kf7 {[%emt 0:00:00]} 56. Rg5 {[%emt 0:00:00]} Kf6 {[%emt 0:04:30]} 57. Kg2 {[%emt 0:00:00]} Ra2+ {[%emt 0:00:00] The position is equal.} 58. Kf3 {[%emt 0:00:00]} Ra3+ {[%emt 0:00:00]} 59. Ke4 {[%emt 0:00:00]} Ra4+ {[%emt 0:00:00]} 60. Kd5 {[%emt 0:00:00]} Ra5+ {[%emt 0:00:00]} 61. Kd6 {[%emt 0:00:00]} Ra6+ {[%emt 0:00:00] Weighted Error Value: White=0.08 (flawless) /Black=0.06 (flawless)} 1/2-1/2

[Event "Charlotte Summer IM C 2022"]
[Site "Charlotte"]
[Date "2022.07.26"]
[Round "5.5"]
[White "Arjun, Vishnuvardhan"]
[Black "Rodriguez Rivera, Pedro"]
[Result "1/2-1/2"]
[ECO "A02"]
[WhiteElo "2273"]
[BlackElo "2192"]
[Annotator "TA"]
[PlyCount "20"]
[EventDate "2022.07.24"]
[EventType "tourn"]
[EventCountry "USA"]
[SourceTitle "playchess.com"]
[Source "ChessBase"]
[SourceQuality "1"]
[TimeControl "5400+30"]

{[%evp 11,20,7,16,11,21,-2,35,18,38,19,15]} 1. f4 {[%emt 0:03:31]} Nf6 {[%emt 1:31:00]} 2. Nf3 {[%emt 0:00:09]} d6 {[%emt 0:00:00]} 3. g3 {[%emt 0:00:14]} g6 {[%emt 0:00:00]} 4. Bg2 {[%emt 0:00:06]} Bg7 {[%emt 0:00:00]} 5. O-O {[%emt 0:00:08]} O-O {[%emt 0:00:00]} 6. d3 c6 {[%emt 0:02:30]} 7. e4 {[%emt 0:00:15] A02: Bird's Opening.} Nbd7 {[%emt 0:00:30]} 8. Nc3 {[%emt 0:00:11]} a6 {[%emt 0:00:00]} 9. h3 {[%emt 0:00:00]} Qc7 {[%emt 0:01:00]} 10. Be3 {[%emt 0:00:22] [#]} Re8 $146 {[%emt 0:00:30] Not much happened in this game.  Weighted Error Value: White=0.15 (very precise) /Black=0.19 (very precise)} ({Predecessor:} 10... b5 11. Qd2 e5 12. f5 d5 13. exd5 cxd5 14. Bh6 Bb7 15. Bxg7 Kxg7 16. fxg6 fxg6 {1-0 (26) Topi Hulmi,T (2277)-Byggmastar,L (2202) Finland 2009}) 1/2-1/2